bitfinex/quotes_ETHUSD_20240601
["timestamp","ask_amount","ask_price","bid_price","bid_amount"]
[1717281771074,2.61472,3824.6,3824.5,0.11124984]
[1717281771239,3.0,3824.9,3824.2,0.702]
[1717281771240,2.61483,3824.4,3824.2,0.702]
[1717281771573,2.61483,3824.4,3824.3,0.1112805]
[1717281772174,2.61483,3824.4,3824.1,0.702]
[1717281772471,2.61483,3824.4,3824.2,0.11129582]
[1717281773574,2.61483,3824.4,3824.0,2.4324]
[1717281773953,2.61483,3824.4,3824.1,0.11131115]
[1717281774186,2.61483,3824.4,3824.1,0.81331115]
[1717281774479,2.61483,3824.4,3824.2,0.11129582]
[1717281776566,2.61458,3824.8,3824.4,2.3452]
[1717281776763,2.61458,3824.8,3824.4,3.0472]
[1717281777149,2.61458,3824.8,3824.5,0.11124984]
[1717281777371,3.176038,3824.8,3824.5,0.11124984]
[1717281777542,0.561458,3824.8,3824.3,0.702]
[1717281777755,2.4355,3825.4,3824.3,0.702]
[1717281777756,2.61472,3824.6,3824.3,0.702]
[1717281783982,2.61472,3824.6,3824.4,2.3452]
[1717281784150,2.61472,3824.6,3824.5,0.702]
[1717281784577,2.61472,3824.6,3824.5,0.81323521]
[1717281784807,2.61446,3824.9,3824.5,1.12907873]
[1717281785616,2.61446,3824.9,3824.7,0.702]
[1717281785920,2.61446,3824.9,3824.8,0.11108377]
[1717281786421,2.61446,3824.9,3824.7,0.702]
[1717281786593,2.61446,3824.9,3824.8,0.11108377]
[1717281786918,2.61446,3824.9,3824.7,0.702]
[1717281787221,3.0,3825.2,3824.8,0.11108377]
[1717281787393,3.0,3825.2,3824.9,0.702]
[1717281787718,3.0,3825.2,3825.1,0.702]
[1717281788083,3.0,3825.2,3825.1,0.81303781]
[1717281788985,3.0,3825.2,3825.1,0.11103781]
[1717281789381,3.0,3825.2,3824.9,3.0472]
[1717281789728,3.0,3825.2,3825.0,0.11099747]
[1717281791427,2.61397,3825.6,3825.0,0.42681722]
[1717281791596,2.61397,3825.6,3825.4,0.702]
[1717281791929,2.61397,3825.6,3825.5,0.11092088]
[1717281792301,2.61397,3825.6,3825.4,0.702]
[1717281795402,5.61371,3826.0,3825.4,0.702]
[1717281796299,5.61371,3826.0,3825.6,0.702]
[1717281796887,5.61371,3826.0,3825.7,0.1105944]
[1717281800936,5.06833151,3826.2,3825.8,2.3084]
[1717281801136,5.06833151,3826.2,3826.1,0.702]
[1717281801349,2.61327,3826.7,3826.1,0.702]
[1717281801501,2.61327,3826.7,3826.3,0.702]
[1717281801700,3.61810015,3826.7,3826.3,0.702]
[1717281802131,3.61810015,3826.7,3825.8,2.3084]
[1717281802431,3.0,3826.6,3826.1,0.702]
[1717281802834,3.0,3826.6,3826.3,0.702]
[1717281806618,2.61335,3826.5,3826.3,0.702]
[1717281806934,3.0,3826.4,3826.3,0.702]
[1717281808008,2.61335,3826.5,3826.3,0.702]
[1717281812912,2.61335,3826.5,3826.3,3.0104]
[1717281813449,2.61335,3826.5,3826.4,0.10653194]
[1717281817843,2.61335,3826.5,3826.4,2.52583194]
[1717281818048,2.61335,3826.5,3826.4,2.84861513]
[1717281818809,3.0,3826.9,3826.4,2.84861513]
[1717281818810,2.61315,3826.8,3826.4,2.84861513]
[1717281819049,3.0,3826.7,3826.5,0.702]
[1717281819223,3.0,3826.7,3826.4,2.52583194]
[1717281819550,3.0,3826.7,3826.5,0.10643466]
[1717281822115,3.0,3826.7,3826.6,0.702]
[1717281822316,3.0,3826.7,3826.6,0.80841935]
[1717281823439,2.61315,3826.8,3826.6,0.80841935]
[1717281833674,2.61274,3827.4,3826.6,1.13119128]
[1717281833862,2.61274,3827.4,3827.2,0.702]
[1717281834263,2.61274,3827.4,3827.3,0.10607805]
[1717281834672,2.61274,3827.4,3827.2,0.702]
[1717281834977,2.61274,3827.4,3827.3,0.10607805]
[1717281835280,2.61274,3827.4,3827.2,0.702]
[1717281835281,5.61274,3827.4,3827.2,0.702]
[1717281835478,3.0,3827.3,3827.2,0.702]
[1717281837846,2.61274,3827.4,3827.2,0.702]
[1717281840183,2.61274,3827.4,3826.7,2.2861]
[1717281840387,2.61274,3827.4,3827.2,0.702]
[1717281842689,2.61274,3827.4,3827.3,0.10581467]
[1717281842891,5.61274,3827.4,3827.3,0.10581467]
[1717281843090,5.61274,3827.4,3827.2,0.702]
[1717281843591,5.61274,3827.4,3827.3,0.10581467]
[1717281843964,5.61274,3827.4,3827.2,0.702]
[1717281844381,5.61274,3827.4,3827.3,0.10581467]
[1717281844884,5.61274,3827.4,3827.2,0.702]
[1717281845290,5.61274,3827.4,3827.3,0.10581467]
[1717281845656,5.61274,3827.4,3827.2,0.702]
[1717281845977,5.61274,3827.4,3827.3,0.10581467]
[1717281846491,5.61274,3827.4,3827.2,0.702]
[1717281846791,5.61274,3827.4,3827.3,0.10581467]
[1717281847192,5.61274,3827.4,3827.2,0.702]
[1717281847694,5.61274,3827.4,3827.3,0.10581467]
[1717281847994,5.61274,3827.4,3827.2,0.702]
[1717281848494,5.61274,3827.4,3827.3,0.10581467]
[1717281848796,5.61274,3827.4,3827.2,0.702]
[1717281849320,5.61274,3827.4,3827.3,0.10581467]
[1717281849697,5.61274,3827.4,3827.2,0.702]
[1717281850064,5.61274,3827.4,3827.3,0.10581467]
[1717281850596,5.61274,3827.4,3827.2,0.702]
[1717281851195,5.61274,3827.4,3827.3,0.10581467]
[1717281851572,5.61274,3827.4,3827.2,0.702]
[1717281852083,5.61274,3827.4,3827.3,0.10581467]
[1717281852397,5.61274,3827.4,3827.2,0.702]
[1717281852764,5.61274,3827.4,3827.3,0.10581467]
[1717281853299,5.61274,3827.4,3827.2,0.702]
[1717281853597,5.61274,3827.4,3827.3,0.10581467]
[1717281854009,5.61274,3827.4,3827.2,0.702]
[1717281854503,5.61274,3827.4,3827.3,0.10549527]
[1717281854889,5.61274,3827.4,3827.2,0.702]
[1717281855203,5.61274,3827.4,3827.3,0.10549527]
[1717281855807,5.61274,3827.4,3827.2,0.702]
[1717281856307,5.61274,3827.4,3827.3,0.10549527]
[1717281856602,5.61274,3827.4,3827.2,0.702]
[1717281856993,5.61274,3827.4,3827.3,0.10549527]
[1717281857366,5.61274,3827.4,3827.2,0.702]
[1717281857566,5.61274,3827.4,3827.3,0.10532809]
[1717281858073,5.61274,3827.4,3827.2,0.702]
[1717281858275,5.61274,3827.4,3827.3,0.10532809]
[1717281858606,2.61274,3827.4,3827.2,0.702]
[1717281858762,2.61274,3827.4,3827.3,0.10532809]
[1717281859373,2.61274,3827.4,3827.2,1.01445]
[1717281859588,2.61274,3827.4,3827.3,0.10532809]
[1717281859997,2.61274,3827.4,3827.2,1.01445]
[1717281860198,2.61274,3827.4,3827.3,0.10532809]
[1717281860595,2.61274,3827.4,3827.2,0.702]
[1717281860802,2.61274,3827.4,3827.3,0.10532809]
[1717281861217,2.61274,3827.4,3827.2,0.702]
[1717281861391,2.61274,3827.4,3827.3,0.10513908]
[1717281861818,2.61274,3827.4,3827.2,0.702]
[1717281862022,2.61274,3827.4,3827.3,0.10511725]
[1717281862408,2.61274,3827.4,3827.2,0.702]
[1717281862711,2.61274,3827.4,3827.3,0.10511725]
[1717281863580,2.61274,3827.4,3827.2,0.702]
[1717281863782,2.61274,3827.4,3827.3,0.10511725]
[1717281864224,2.61274,3827.4,3827.2,0.702]
[1717281864379,2.61274,3827.4,3827.3,0.10511725]
[1717281864718,2.61274,3827.4,3827.1,0.702]
[1717281864928,2.61274,3827.4,3826.4,2.6134]
[1717281865107,2.61274,3827.4,3827.2,0.10513255]
[1717281865284,2.61274,3827.4,3826.8,0.702]
[1717281865784,2.61274,3827.4,3826.9,0.10503193]
[1717281868221,2.61293,3827.2,3826.9,0.10503193]
[1717281871420,2.61293,3827.2,3827.1,0.702]
[1717281871802,2.61293,3827.2,3827.1,0.80705102]
[1717281876438,2.61293,3827.2,3827.1,0.10505102]
[1717281876742,2.61293,3827.2,3826.7,2.4225]
[1717281876743,2.61293,3827.2,3827.0,0.702]
[1717281877235,2.61293,3827.2,3827.1,0.10506269]
[1717281877604,2.61293,3827.2,3827.0,0.702]
[1717281877862,2.61293,3827.2,3827.1,0.10506269]
[1717281878133,2.61293,3827.2,3827.0,0.702]
[1717281878438,2.61293,3827.2,3827.1,0.10506269]
[1717281878855,2.61293,3827.2,3826.8,0.702]
[1717281879006,2.61293,3827.2,3827.1,0.10506269]
[1717281879504,2.61293,3827.2,3826.8,0.702]
[1717281879705,2.61293,3827.2,3826.9,0.1050436]
[1717281883462,2.4484,3827.1,3826.2,0.702]
[1717281883612,8.06134,3827.1,3827.0,0.10156816]
[1717281883810,8.06134,3827.1,3826.2,0.702]
[1717281883811,2.61334,3826.6,3826.2,0.702]
[1717281884143,2.61334,3826.6,3826.3,0.10167532]
[1717281884449,2.61334,3826.6,3826.2,0.702]
[1717281884645,2.61334,3826.6,3826.4,0.10171831]
[1717281884830,2.61334,3826.6,3826.3,0.10173362]
[1717281885028,2.61334,3826.6,3826.5,0.101703]
[1717281885234,2.61334,3826.6,3826.4,0.10171831]
[1717281885437,2.61334,3826.6,3826.5,0.101703]
[1717281886651,5.323074,3826.6,3826.5,0.101703]
[1717281887037,2.61354,3826.3,3826.0,0.702]
[1717281887561,2.61354,3826.3,3826.1,0.1018517]
[1717281889736,2.61354,3826.3,3826.2,0.702]
[1717281891372,2.61354,3826.3,3825.5,2.437]
[1717281891538,2.61354,3826.3,3826.1,0.702]
[1717281891747,2.61354,3826.3,3826.2,0.10186262]
[1717281894358,2.61354,3826.3,3825.9,0.702]
[1717281894652,2.61354,3826.3,3826.1,0.702]
[1717281894968,2.61354,3826.3,3826.2,0.10210461]
[1717281895140,5.06169,3826.6,3826.2,0.10210461]
[1717281895337,2.61329,3826.6,3826.2,0.10210461]
[1717281895552,2.61329,3826.6,3826.3,0.702]
[1717281895775,2.61329,3826.6,3826.4,0.10207399]
[1717281902590,7.68142151,3826.9,3826.5,0.702]
[1717281902787,7.68142151,3826.9,3826.8,0.702]
[1717281902788,5.06833151,3826.9,3826.8,0.702]
[1717281902988,5.06833151,3826.9,3826.8,0.80401276]
[1717281903197,5.06833151,3826.9,3826.8,3.0408]
[1717281903394,5.06833151,3826.9,3826.8,3.47812035]
[1717281904794,2.61266,3827.6,3826.8,3.47812035]
[1717281904996,2.61266,3827.6,3827.4,0.702]
[1717281905304,2.61266,3827.6,3827.5,0.10170739]
[1717281906212,2.61266,3827.6,3827.4,0.702]
[1717281906376,2.61266,3827.6,3827.5,0.10170739]
[1717281907186,2.61266,3827.6,3827.5,0.40881813]
[1717281908080,5.61238,3828.0,3827.5,0.40881813]
[1717281908290,5.61238,3828.0,3827.5,0.10170739]
[1717281908691,5.61238,3828.0,3827.6,0.702]
[1717281909101,5.61238,3828.0,3827.7,0.10105308]
[1717281909879,5.61238,3828.0,3827.6,0.702]
[1717281910105,5.61238,3828.0,3827.8,0.10103778]
[1717281910306,5.61238,3828.0,3827.7,0.10105308]
[1717281910506,5.61238,3828.0,3827.9,0.10102248]
[1717281910715,5.61238,3828.0,3827.8,0.10103778]
[1717281910905,5.61238,3828.0,3827.9,0.10102248]
[1717281911305,5.61238,3828.0,3827.6,0.702]
[1717281911495,5.61238,3828.0,3827.9,0.10102248]
[1717281911694,5.61238,3828.0,3827.6,0.702]
[1717281911914,5.61238,3828.0,3827.9,0.10102248]
[1717281912514,5.61238,3828.0,3827.6,0.702]
[1717281912697,5.61238,3828.0,3827.9,0.10102248]
[1717281912897,5.61238,3828.0,3827.6,0.702]
[1717281913410,5.61238,3828.0,3827.7,0.10105308]
[1717281915292,5.61238,3828.0,3827.4,0.702]
[1717281915493,5.61238,3828.0,3827.8,0.10103778]
[1717281915705,5.61238,3828.0,3827.4,0.702]
[1717281916089,5.61238,3828.0,3827.5,0.10108368]
[1717281916289,2.61254,3827.7,3827.5,0.10108368]
[1717281917038,4.90544,3827.7,3827.5,0.10108368]
[1717281917536,2.61274,3827.4,3827.1,0.702]
[1717281917940,2.61274,3827.4,3827.2,0.10113251]
[1717281923302,2.2929,3827.3,3827.2,0.10113251]
[1717281923509,2.61287,3827.2,3827.0,0.702]
[1717281923815,2.61287,3827.2,3827.1,0.10124689]
[1717281924152,2.61287,3827.2,3827.0,0.702]
[1717281924359,2.61287,3827.2,3827.1,0.10124689]
[1717281924569,2.61287,3827.2,3827.0,0.702]
[1717281924772,2.61287,3827.2,3827.1,0.10124689]
[1717281925146,2.61287,3827.2,3827.0,0.702]
[1717281925351,2.61287,3827.2,3827.1,0.10125272]
[1717281925545,2.61287,3827.2,3827.0,0.702]
[1717281926068,2.61287,3827.2,3827.1,0.1012498]
[1717281926567,2.61287,3827.2,3827.0,0.702]
[1717281926746,2.61287,3827.2,3827.1,0.1012498]
[1717281926947,2.61287,3827.2,3827.0,0.702]
[1717281927146,2.61287,3827.2,3827.1,0.1012498]
[1717281927369,2.61287,3827.2,3827.0,0.702]
[1717281927768,2.61287,3827.2,3827.1,0.1012498]
[1717281928066,2.61287,3827.2,3827.0,0.702]
[1717281928276,2.61287,3827.2,3827.1,0.10134886]
[1717281928638,2.61287,3827.2,3827.0,0.702]
[1717281928839,2.61287,3827.2,3827.1,0.10134886]
[1717281929368,2.61287,3827.2,3827.0,0.702]
[1717281929578,2.61287,3827.2,3827.1,0.10134886]
[1717281929783,2.61287,3827.2,3827.0,0.702]
[1717281929961,2.61287,3827.2,3827.1,0.10134886]
[1717281930461,2.61287,3827.2,3827.0,0.702]
[1717281930664,4.90554,3827.6,3827.1,0.10134886]
[1717281930983,4.90554,3827.6,3827.1,0.31826489]
[1717281931278,4.90554,3827.6,3827.2,0.10133355]
[1717281931452,4.90554,3827.6,3827.2,0.80333355]
[1717281936478,4.90554,3827.6,3827.2,0.10133355]
[1717281936679,2.61279,3827.4,3827.2,0.10133355]
[1717281936878,2.61279,3827.4,3827.0,0.702]
[1717281937077,2.61279,3827.4,3827.3,0.10040158]
[1717281937267,2.61279,3827.4,3827.0,0.702]
[1717281937466,2.61279,3827.4,3827.3,0.10040158]
[1717281937695,2.61279,3827.4,3827.0,0.702]
[1717281937898,2.61279,3827.4,3827.3,0.10040158]
[1717281938085,2.61279,3827.4,3827.1,0.702]
[1717281938292,2.61279,3827.4,3827.3,0.10039577]
[1717281938455,2.61279,3827.4,3827.2,0.10041107]
[1717281938891,2.61279,3827.4,3827.1,0.702]
[1717281939357,2.61279,3827.4,3827.2,0.10041107]
[1717281939797,2.61279,3827.4,3827.0,0.702]
[1717281940217,2.61279,3827.4,3827.1,0.10042637]
[1717281940418,2.61279,3827.4,3827.0,0.702]
[1717281940737,2.61279,3827.4,3827.1,0.10042637]
[1717281940934,2.61279,3827.4,3827.0,0.702]
[1717281941225,2.61279,3827.4,3827.1,0.10042637]
[1717281941392,2.61279,3827.4,3827.0,0.702]
[1717281941821,2.61279,3827.4,3827.1,0.10042637]
[1717281942027,2.61279,3827.4,3827.0,0.702]
[1717281942403,2.61279,3827.4,3827.1,0.10042637]
[1717281942613,2.61279,3827.4,3827.0,0.702]
[1717281942940,2.61279,3827.4,3827.1,0.10042637]
[1717281943311,2.61279,3827.4,3827.0,0.702]
[1717281943636,2.61279,3827.4,3827.1,0.10042637]
[1717281943944,2.61279,3827.4,3827.0,0.702]
[1717281944095,2.61279,3827.4,3827.2,0.10041107]
[1717281944301,2.61279,3827.4,3827.0,0.702]
[1717281944496,2.61279,3827.4,3827.3,0.10039577]
[1717281944695,2.61279,3827.4,3827.0,0.702]
[1717281944896,2.61279,3827.4,3827.3,0.10039577]
[1717281945096,2.61279,3827.4,3827.0,0.702]
[1717281945393,2.61279,3827.4,3827.3,0.10039577]
[1717281946548,2.61279,3827.4,3827.2,0.702]
[1717281946701,2.61279,3827.4,3827.3,0.10039577]
[1717281946901,2.61279,3827.4,3827.2,0.702]
[1717281947137,2.61279,3827.4,3827.3,0.10039577]
[1717281947630,2.61279,3827.4,3827.2,0.702]
[1717281947828,2.61279,3827.4,3827.3,0.10039577]
[1717281948061,2.61279,3827.4,3827.2,0.702]
[1717281948381,2.61279,3827.4,3827.3,0.10039577]
[1717281948743,2.61279,3827.4,3827.2,0.702]
[1717281948938,2.61279,3827.4,3827.3,0.10039577]
[1717281949164,2.61279,3827.4,3827.2,0.702]
[1717281949465,2.61279,3827.4,3827.3,0.10039577]
[1717281949668,2.61279,3827.4,3827.2,0.702]
[1717281949869,2.61279,3827.4,3827.3,0.10039577]
[1717281950081,2.61279,3827.4,3827.2,0.702]
[1717281950378,2.61279,3827.4,3827.3,0.10039577]
[1717281950675,2.61279,3827.4,3827.2,0.702]
[1717281950839,2.61279,3827.4,3827.3,0.10039577]
[1717281951040,2.61279,3827.4,3827.2,0.702]
[1717281951375,2.61279,3827.4,3827.3,0.10034913]
[1717281951676,2.61279,3827.4,3827.2,0.702]
[1717281951877,2.61279,3827.4,3827.3,0.10034913]
[1717281952072,2.61279,3827.4,3827.2,0.702]
[1717281952260,2.61279,3827.4,3827.3,0.80234913]
[1717281957689,2.61279,3827.4,3827.3,0.10034913]
[1717281957889,2.61279,3827.4,3827.2,0.702]
[1717281958120,2.61279,3827.4,3827.3,0.10034913]
[1717281958308,2.61279,3827.4,3827.2,0.702]
[1717281958514,2.61279,3827.4,3827.3,0.10034913]
[1717281958718,2.61279,3827.4,3827.2,0.702]
[1717281959024,2.61279,3827.4,3827.3,0.10034913]
[1717281959418,2.61279,3827.4,3827.2,0.702]
[1717281959589,2.61279,3827.4,3827.3,0.10034913]
[1717281959920,2.61279,3827.4,3827.2,0.702]
[1717281960234,2.61279,3827.4,3827.3,0.10034913]
[1717281960593,2.61279,3827.4,3827.2,0.702]
[1717281960793,2.61279,3827.4,3827.3,0.10034913]
[1717281961504,2.61279,3827.4,3827.2,0.702]
[1717281961701,2.61279,3827.4,3827.3,0.10034913]
[1717281961896,2.61279,3827.4,3827.2,0.702]
[1717281962234,2.61279,3827.4,3827.3,0.10034913]
[1717281962541,2.61279,3827.4,3827.2,0.702]
[1717281962693,2.61279,3827.4,3827.3,0.10034913]
[1717281962892,2.61279,3827.4,3827.2,0.702]
[1717281963213,2.61279,3827.4,3827.3,0.10037247]
[1717281963525,2.61279,3827.4,3827.2,0.702]
[1717281963724,2.61279,3827.4,3827.3,0.10037247]
[1717281964028,2.61279,3827.4,3827.2,0.702]
[1717281964332,2.61279,3827.4,3827.3,0.10037247]
[1717281964518,2.61279,3827.4,3827.2,0.702]
[1717281964694,2.61279,3827.4,3827.3,0.10037247]
[1717281964894,2.61279,3827.4,3827.2,0.702]
[1717281965096,2.61279,3827.4,3827.3,0.10037247]
[1717281965291,2.61279,3827.4,3827.2,0.702]
[1717281965492,2.61279,3827.4,3827.3,0.10037247]
[1717281965694,2.61279,3827.4,3827.2,0.702]
[1717281965999,2.61279,3827.4,3827.3,0.10037247]
[1717281966498,2.61279,3827.4,3827.2,0.702]
[1717281966699,2.61279,3827.4,3827.3,0.10037247]
[1717281966897,2.61279,3827.4,3827.2,0.702]
[1717281967139,2.61279,3827.4,3827.3,0.10037247]
[1717281967310,2.61279,3827.4,3827.2,0.702]
[1717281967489,2.61279,3827.4,3827.3,0.10037247]
[1717281967891,2.61279,3827.4,3827.2,0.702]
[1717281968095,2.61279,3827.4,3827.3,0.10037247]
[1717281968294,4.99824804,3827.4,3827.1,0.702]
[1717281968549,2.61279,3827.4,3827.3,0.10037247]
[1717281968703,2.61279,3827.4,3826.9,0.702]
[1717281969040,2.61279,3827.4,3827.3,0.10037247]
[1717281969533,2.61279,3827.4,3826.9,0.702]
[1717281969731,2.61279,3827.4,3827.3,0.10037247]
[1717281969937,2.61279,3827.4,3826.9,0.702]
[1717281970131,2.61279,3827.4,3827.3,0.10041618]
[1717281970434,2.61279,3827.4,3826.9,0.702]
[1717281970812,2.61279,3827.4,3827.0,0.10046209]
[1717281976034,2.61293,3827.2,3827.0,0.10046209]
[1717281976361,2.61293,3827.2,3826.8,0.702]
[1717281976651,2.61293,3827.2,3827.1,0.10048465]
[1717281976811,2.61293,3827.2,3826.8,0.702]
[1717281977353,2.61293,3827.2,3826.9,0.10051526]
[1717281979424,4.97293,3827.2,3826.9,0.10051526]
[1717281979609,4.97293,3827.2,3826.7,0.702]
[1717281979813,4.97293,3827.2,3827.0,0.10049996]
[1717281980012,4.97293,3827.2,3826.7,0.702]
[1717281980652,2.61307,3827.0,3826.8,0.10053057]
[1717281980836,2.36,3826.9,3826.8,0.10053057]
[1717281981045,2.36,3826.9,3826.3,0.702]
[1717281981046,2.61338,3826.5,3826.3,0.702]
[1717281981256,2.36,3826.4,3825.5,2.3307]
[1717281981451,2.36,3826.4,3825.6,4.23307]
[1717281981619,2.61368,3826.1,3825.7,0.702]
[1717281981823,2.61398,3825.6,3824.8,0.69167453]
[1717281982056,2.61398,3825.6,3825.3,0.702]
[1717281982555,2.61398,3825.6,3824.8,0.40911255]
[1717281982727,2.61398,3825.6,3825.3,0.702]
[1717281984882,7.68207151,3826.0,3825.5,0.702]
[1717281985031,7.68207151,3826.0,3825.7,0.702]
[1717281985230,2.61374,3826.0,3825.7,0.702]
[1717281986063,2.61312,3826.9,3825.9,0.702]
[1717281986263,2.61312,3826.9,3826.7,0.702]
[1717281986858,2.61312,3826.9,3826.8,0.0980892]
[1717281987386,2.61312,3826.9,3826.7,0.702]
[1717281987728,2.61312,3826.9,3826.8,0.09783552]
[1717281988033,2.61312,3826.9,3826.7,0.702]
[1717281988560,2.61312,3826.9,3826.8,0.09783552]
[1717281988767,2.61312,3826.9,3826.7,0.702]
[1717281989063,2.61312,3826.9,3826.8,0.09783552]
[1717281989562,2.61312,3826.9,3826.7,0.702]
[1717281989725,2.61312,3826.9,3826.8,0.09784427]
[1717281989929,2.61312,3826.9,3826.7,0.702]
[1717281990128,2.61312,3826.9,3826.8,0.09784427]
[1717281990323,5.06833151,3827.2,3826.7,0.702]
[1717281990529,5.06833151,3827.2,3826.9,0.702]
[1717281990834,5.06833151,3827.2,3826.5,2.3307]
[1717281990835,2.61257,3827.7,3827.1,0.702]
[1717281991252,2.61257,3827.7,3827.2,0.09778305]
[1717281993029,2.61257,3827.7,3827.3,0.702]
[1717281993246,2.61257,3827.7,3827.5,0.702]
[1717281993733,2.61257,3827.7,3827.6,0.09761399]
[1717281993934,2.61257,3827.7,3827.5,0.702]
[1717281994156,2.61257,3827.7,3827.6,0.09761399]
[1717281994367,2.61257,3827.7,3827.5,0.702]
[1717281994672,2.61257,3827.7,3827.6,0.09758193]
[1717281994965,2.61257,3827.7,3827.5,0.702]
[1717281995272,2.61257,3827.7,3827.6,0.09758193]
[1717281995647,5.06833151,3828.0,3827.5,0.702]
[1717281999907,5.06833151,3828.0,3827.7,0.702]
[1717282000276,5.06833151,3828.0,3827.9,0.702]
[1717282000480,2.61222,3828.2,3827.4,2.4479]
[1717282000784,2.61222,3828.2,3827.8,0.702]
[1717282001900,2.61222,3828.2,3827.5,0.24479]
[1717282002095,2.61222,3828.2,3827.6,0.79880122]
[1717282003220,2.61222,3828.2,3827.8,0.702]
[1717282011938,2.61239,3827.9,3827.1,2.6129]
[1717282012244,2.61239,3827.9,3827.2,0.79559105]
[1717282014516,0.702,3828.3,3827.2,0.79559105]
[1717282014722,2.61269,3827.5,3827.3,0.702]
[1717282014937,2.61269,3827.5,3827.4,0.09347012]
[1717282015144,2.61269,3827.5,3827.3,0.702]
[1717282015443,2.61269,3827.5,3827.4,0.09347012]
[1717282015971,2.61269,3827.5,3826.7,2.61316]
[1717282016276,2.61269,3827.5,3827.3,0.702]
[1717282016639,2.61269,3827.5,3827.4,0.09347012]
[1717282017039,2.61269,3827.5,3827.3,0.702]
[1717282017572,2.61269,3827.5,3827.4,0.09358666]
[1717282017772,2.61269,3827.5,3827.3,0.702]
[1717282017974,2.61269,3827.5,3827.4,0.09358666]
[1717282018148,2.61269,3827.5,3827.3,0.702]
[1717282018348,2.61269,3827.5,3827.4,0.09358666]
[1717282018577,2.61269,3827.5,3827.3,0.702]
[1717282018774,2.61246,3827.9,3827.4,0.093575]
[1717282018934,2.61246,3827.9,3827.5,0.702]
[1717282019377,2.61246,3827.9,3827.6,0.09355606]
[1717282022899,2.61246,3827.9,3827.7,0.702]
[1717282023394,7.68052151,3828.2,3827.8,0.09352546]
[1717282023596,7.68052151,3828.2,3828.1,0.702]
[1717282023792,2.61219,3828.2,3828.1,0.79551743]
[1717282025962,2.61219,3828.2,3828.1,0.09351743]
[1717282026271,2.61219,3828.2,3827.9,0.702]
[1717282026608,2.61219,3828.2,3828.0,0.09353273]
[1717282032839,2.61199,3828.5,3828.0,0.09353273]
[1717282033043,2.61199,3828.5,3828.0,0.415806]
[1717282033411,2.61199,3828.5,3828.0,0.32227327]
[1717282033749,2.61199,3828.5,3828.0,0.702]
[1717282034233,2.61219,3828.3,3828.0,0.702]
[1717282034846,2.61219,3828.3,3828.1,0.09345333]
[1717282035208,2.61233,3828.0,3827.4,2.4272]
[1717282035550,2.61233,3828.0,3827.8,0.702]
[1717282035751,2.61233,3828.0,3827.9,0.09348393]
[1717282036927,2.61254,3827.7,3826.9,2.4557]
[1717282037129,2.61254,3827.7,3827.4,0.702]
[1717282037550,2.61254,3827.7,3827.5,0.09344315]
[1717282040266,2.61254,3827.7,3827.4,0.702]
[1717282040454,2.61254,3827.7,3827.6,0.09342785]
[1717282040654,2.61254,3827.7,3827.5,0.09344315]
[1717282040858,2.61254,3827.7,3827.6,0.09342785]
[1717282041177,2.61254,3827.7,3827.4,0.702]
[1717282041380,2.61254,3827.7,3827.5,0.09344315]
[1717282041731,2.61254,3827.7,3827.6,0.702]
[1717282041927,2.61254,3827.7,3827.6,0.79542785]
[1717282042132,2.61254,3827.7,3827.6,0.09342785]
[1717282042450,2.61254,3827.7,3827.4,0.702]
[1717282042655,2.61254,3827.7,3827.6,0.09342785]
[1717282042851,2.61254,3827.7,3827.5,0.09344315]
[1717282043055,2.61254,3827.7,3827.6,0.09342785]
[1717282043470,2.61254,3827.7,3827.4,0.702]
[1717282043770,2.61254,3827.7,3827.5,0.09344315]
[1717282044858,2.61254,3827.7,3827.3,0.702]
[1717282045079,2.61254,3827.7,3827.6,0.09355022]
[1717282045577,2.61254,3827.7,3827.3,0.702]
[1717282045778,2.61254,3827.7,3827.6,0.0936551]
[1717282046102,2.61254,3827.7,3827.3,0.702]
[1717282046296,2.61254,3827.7,3827.6,0.0936551]
[1717282046500,2.61254,3827.7,3827.3,0.702]
[1717282046663,2.61254,3827.7,3827.6,0.0936551]
[1717282046867,2.61254,3827.7,3827.3,0.702]
[1717282047068,2.61254,3827.7,3827.6,0.0936551]
[1717282047268,2.61254,3827.7,3827.5,3.1577]
[1717282047469,2.61254,3827.7,3827.6,0.0936551]
[1717282050171,2.61233,3828.0,3827.6,0.0936551]
[1717282052490,2.61233,3828.0,3827.7,0.702]
[1717282052866,2.61233,3828.0,3827.8,0.0936245]
[1717282053070,2.61212,3828.3,3827.9,0.702]
[1717282053619,2.61212,3828.3,3828.0,0.09359391]
[1717282053776,2.61212,3828.3,3827.9,0.702]
[1717282053976,2.61212,3828.3,3828.1,0.09357861]
[1717282054317,2.61212,3828.3,3827.9,0.702]
[1717282054495,2.61212,3828.3,3828.2,0.09356332]
[1717282054699,2.61212,3828.3,3827.9,0.702]
[1717282055210,2.61212,3828.3,3828.0,0.09359391]
[1717282057510,2.61212,3828.3,3828.1,0.702]
[1717282057888,2.61212,3828.3,3828.2,0.09356332]
[1717282058307,2.61192,3828.7,3828.2,0.41380965]
[1717282058608,2.61192,3828.7,3828.4,0.702]
[1717282060094,2.61192,3828.7,3828.5,0.09338927]
[1717282061622,2.61192,3828.7,3828.2,1.02224633]
[1717282061815,2.61192,3828.7,3828.6,0.09337397]
[1717282062018,2.61192,3828.7,3828.2,1.02224633]
[1717282062185,2.61192,3828.7,3828.6,0.09337397]
[1717282062390,2.61192,3828.7,3828.4,0.702]